bitfinex/quotes_BTCUSD_20251117
["timestamp","ask_amount","ask_price","bid_price","bid_amount"]
[1763339755077,0.04341874,95308.0,95290.0,0.01980005]
[1763339755261,0.09622,95307.0,95290.0,0.01980005]
[1763339755475,0.40728,95306.0,95300.0,0.001]
[1763339755659,0.49156,95301.0,95300.0,0.001]
[1763339755858,0.323,95300.0,95280.0,0.00980006]
[1763339756124,0.04644,95291.0,95280.0,0.00980006]
[1763339756515,0.36944,95291.0,95280.0,0.00980006]
[1763339756724,0.04644,95291.0,95280.0,0.00980006]
[1763339756927,0.323,95289.0,95270.0,0.00980006]
[1763339757417,0.09622,95288.0,95270.0,0.00980006]
[1763339757897,0.09622,95288.0,95270.0,0.01980005]
[1763339758233,0.09622,95288.0,95270.0,0.00980006]
[1763339758692,0.09622,95288.0,95280.0,0.001]
[1763339758892,0.37103716,95287.0,95280.0,0.001]
[1763339759118,0.04341874,95286.0,95260.0,0.00980006]
[1763339759278,0.04341874,95284.0,95250.0,0.00980006]
[1763339759638,0.04644,95251.0,95240.0,0.00980006]
[1763339759778,0.04644,95251.0,95240.0,0.01980005]
[1763339759983,0.00143019,95241.0,95240.0,0.00980006]
[1763339760312,0.00143019,95241.0,95230.0,0.01980005]
[1763339760521,0.323,95259.0,95230.0,0.01980005]
[1763339760738,0.3553,95259.0,95250.0,0.01980005]
[1763339761096,0.323,95260.0,95250.0,0.00980006]
[1763339761297,0.323,95260.0,95250.0,0.01980005]
[1763339761706,0.823,95260.0,95250.0,0.01980005]
[1763339761922,0.5,95260.0,95251.0,6e-05]
[1763339762327,0.5,95260.0,95256.0,0.03711172]
[1763339762501,0.30368,95260.0,95257.0,0.04957345]
[1763339762706,0.30362,95260.0,95258.0,0.02192502]
[1763339763010,0.5,95260.0,95259.0,0.05877595]
[1763339763211,0.5,95260.0,95259.0,0.02192502]
[1763339763600,0.823,95260.0,95259.0,0.04962258]
[1763339763807,0.823,95260.0,95259.0,0.02192502]
[1763339764021,0.323,95259.0,95258.0,0.001]
[1763339764207,0.41922,95259.0,95258.0,0.00113328]
[1763339764415,0.41922,95259.0,95229.0,0.02770205]
[1763339764416,0.04341874,95258.0,95229.0,0.02770205]
[1763339764619,0.04644,95232.0,95229.0,0.00013333]
[1763339764830,0.41922,95231.0,95229.0,0.00013333]
[1763339764988,0.41298474,95230.0,95229.0,3.33e-06]
[1763339765190,0.50920474,95230.0,95213.0,0.02225392]
[1763339765394,0.36641874,95228.0,95213.0,0.00013342]
[1763339765593,0.36641874,95226.0,95195.0,0.02229435]
[1763339765802,0.00019993,95220.0,95195.0,0.00013344]
[1763339765978,0.08985874,95196.0,95195.0,0.00013344]
[1763339766364,0.50907874,95196.0,95195.0,0.00013344]
[1763339770616,0.51107874,95196.0,95195.0,0.00013344]
[1763339770790,0.41485874,95196.0,95195.0,0.00013344]
[1763339770993,0.50907874,95196.0,95195.0,0.00013344]
[1763339772158,0.51007874,95196.0,95195.0,0.00013344]
[1763339772559,0.50907874,95196.0,95195.0,0.00013344]
[1763339772760,0.55850152,95196.0,95195.0,0.00013344]
[1763339773151,0.46128152,95196.0,95195.0,0.00013344]
[1763339773347,0.41385874,95196.0,95195.0,0.00013344]
[1763339773551,0.324,95196.0,95195.0,0.00013344]
[1763339773751,0.00024764,95198.0,95195.0,0.00013344]
[1763339774002,0.49870764,95200.0,95195.0,0.00266344]
[1763339774383,0.323,95199.0,95195.0,0.00266344]
[1763339774511,0.49999964,95200.0,95196.0,0.02223367]
[1763339774716,0.49999964,95200.0,95197.0,0.02947359]
[1763339774921,0.49999964,95200.0,95198.0,0.02223367]
[1763339775286,0.49999964,95200.0,95199.0,0.02223367]
[1763339775471,0.66863964,95200.0,95199.0,0.02223367]
[1763339775678,0.61170341,95200.0,95199.0,0.02223367]
[1763339775965,0.49999941,95200.0,95199.0,0.02223367]
[1763339776109,0.41460029,95200.0,95199.0,0.03201226]
[1763339776551,0.49747287,95200.0,95199.0,0.075431]
[1763339776753,0.48981363,95200.0,95199.0,0.075431]
[1763339777068,0.48981363,95200.0,95199.0,0.02523367]
[1763339777312,0.49999963,95200.0,95199.0,0.08068671]
[1763339777477,0.49999963,95200.0,95199.0,0.07768671]
[1763339777638,0.49999963,95200.0,95199.0,0.08068671]
[1763339777838,0.49999963,95200.0,95199.0,0.08368671]
[1763339778096,0.49999963,95200.0,95199.0,0.09206873]
[1763339778304,0.4898669,95200.0,95199.0,0.03361569]
[1763339778507,0.4898669,95200.0,95199.0,0.06865241]
[1763339778642,0.4898669,95200.0,95199.0,0.07165241]
[1763339778844,0.4999999,95200.0,95199.0,0.06865241]
[1763339779065,0.4999999,95200.0,95199.0,0.06565241]
[1763339779395,0.4999999,95200.0,95199.0,0.33577287]
[1763339780166,0.41369453,95200.0,95199.0,0.32165241]
[1763339780374,0.35528456,95200.0,95199.0,0.41565902]
[1763339780574,0.35130738,95200.0,95199.0,0.32165241]
[1763339780775,0.12719676,95200.0,95199.0,0.32165241]
[1763339780983,0.12719676,95200.0,95199.0,0.31865241]
[1763339781254,0.12192723,95200.0,95199.0,0.31865241]
[1763339781383,0.06860423,95200.0,95199.0,2.32165241]
[1763339781600,0.03624023,95200.0,95199.0,2.29941874]
[1763339781796,0.03624023,95200.0,95199.0,2.29341874]
[1763339782347,0.03624023,95200.0,95199.0,2.30141874]
[1763339782539,0.01592123,95200.0,95199.0,2.29841874]
[1763339782774,0.00024758,95207.0,95200.0,0.05341874]
[1763339782943,0.00024758,95207.0,95200.0,0.22277752]
[1763339783321,0.00024758,95207.0,95203.0,0.04341874]
[1763339784114,0.00024758,95207.0,95206.0,0.25]
[1763339784343,0.00024758,95207.0,95206.0,0.29341874]
[1763339785131,0.00024758,95207.0,95206.0,0.254]
[1763339785504,0.16888758,95207.0,95206.0,0.254]
[1763339785629,0.00024758,95207.0,95206.0,0.25]
[1763339786117,0.00024758,95207.0,95206.0,0.258]
[1763339786279,0.00024758,95207.0,95206.0,0.004]
[1763339786688,0.00024758,95207.0,95206.0,0.007]
[1763339786888,0.00024758,95207.0,95206.0,0.004]
[1763339787257,0.00024758,95207.0,95203.0,0.07420294]
[1763339787460,0.00024758,95207.0,95202.0,0.07420294]
[1763339787767,0.00024758,95207.0,95206.0,0.003]
[1763339788728,0.01675435,95207.0,95203.0,0.003]
[1763339788889,0.01675435,95207.0,95206.0,0.002]
[1763339789116,0.01675435,95207.0,95201.0,0.25]
[1763339789402,0.01675435,95207.0,95206.0,0.004]
[1763339789766,0.01675435,95207.0,95200.0,0.00999999]
[1763339789978,0.01675435,95207.0,95196.0,0.24729212]
[1763339790177,0.01675435,95207.0,95206.0,0.05572909]
[1763339790383,0.01675435,95207.0,95200.0,0.00999999]
[1763339790589,0.01675435,95207.0,95201.0,0.04341874]
[1763339790835,0.00024758,95207.0,95206.0,0.002]
[1763339791138,0.00024758,95207.0,95205.0,0.0927141]
[1763339791350,0.00024758,95207.0,95206.0,0.3427141]
[1763339791552,0.5,95220.0,95206.0,0.3427141]
[1763339791553,0.5,95220.0,95211.0,0.04341874]
[1763339791720,0.5,95220.0,95213.0,0.04341874]
[1763339791924,0.00024755,95216.0,95215.0,0.04341874]
[1763339792332,0.00024755,95216.0,95210.0,0.02999998]
[1763339792333,0.00024755,95216.0,95210.0,0.00999999]
[1763339792536,0.00024755,95216.0,95215.0,0.09287336]
[1763339792840,0.00024755,95216.0,95215.0,0.09287231]
[1763339793291,0.00024755,95216.0,95215.0,0.25]
[1763339793865,0.0167518,95216.0,95215.0,0.34590226]
[1763339794313,0.0167518,95216.0,95215.0,0.003]
[1763339794496,0.0167518,95216.0,95207.0,0.09290226]
[1763339794686,0.0167518,95216.0,95215.0,0.003]
[1763339795082,0.0167518,95216.0,95215.0,0.006]
[1763339795262,0.0167518,95216.0,95210.0,0.00999999]
[1763339795465,0.08428,95211.0,95206.0,0.09290226]
[1763339795875,0.08428,95211.0,95207.0,0.003]
[1763339796072,0.08428,95211.0,95205.0,0.09290226]
[1763339796271,0.323,95214.0,95205.0,0.25]
[1763339796504,0.0167518,95216.0,95210.0,0.07435599]
[1763339796729,0.0167518,95216.0,95210.0,0.00999999]
[1763339797032,0.0167518,95216.0,95214.0,0.05576714]
[1763339797196,0.0167518,95216.0,95215.0,0.05576714]
[1763339797360,0.0167518,95216.0,95213.0,0.05576714]
[1763339797557,0.0167518,95216.0,95210.0,0.01299999]
[1763339797558,0.0167518,95216.0,95211.0,0.05576714]
[1763339798313,0.0167518,95216.0,95213.0,0.05576714]
[1763339798751,0.0167518,95216.0,95213.0,0.05676714]
[1763339798926,0.0167518,95216.0,95213.0,0.05576714]
[1763339799330,0.0167518,95216.0,95215.0,0.05576714]
[1763339799691,0.0167518,95216.0,95211.0,0.001]
[1763339799692,0.0167518,95216.0,95214.0,0.05576714]
[1763339799879,0.0167518,95216.0,95215.0,0.05576714]
[1763339800193,0.0167518,95216.0,95211.0,0.003]
[1763339800194,0.00024755,95216.0,95211.0,0.003]
[1763339800312,0.00024755,95216.0,95211.0,0.001]
[1763339800935,0.00024755,95216.0,95195.0,0.00013344]
[1763339800936,0.00024755,95216.0,95212.0,0.00109165]
[1763339801157,0.00024755,95216.0,95195.0,0.00013344]
[1763339801158,0.04341874,95214.0,95213.0,0.001]
[1763339801523,0.04341874,95214.0,95195.0,0.00013344]
[1763339801524,0.01651123,95215.0,95211.0,0.002]
[1763339802857,0.01651123,95215.0,95210.0,0.00999999]
[1763339803061,0.01651123,95215.0,95211.0,0.0279739]
[1763339803428,0.01651123,95215.0,95210.0,0.00999999]
[1763339803987,0.01651123,95215.0,95195.0,0.00013344]
[1763339804365,0.01429232,95215.0,95195.0,0.00013344]
[1763339804706,0.01429232,95215.0,95210.0,0.001]
[1763339805206,0.04341874,95214.0,95210.0,0.001]
[1763339805542,0.53505874,95211.0,95210.0,0.001]
[1763339805893,0.45073874,95211.0,95202.0,0.02805953]
[1763339806091,0.36952786,95210.0,95201.0,0.02805953]
[1763339806258,0.36952786,95210.0,95195.0,0.00213344]
[1763339806657,0.36952786,95210.0,95117.0,0.1113]
[1763339806880,1.22310074,95010.0,95009.0,0.15053196]
[1763339807119,0.57095803,95010.0,95009.0,0.13953557]
[1763339807321,0.01999999,95170.0,95009.0,0.13953557]
[1763339807322,0.02999998,95170.0,95011.0,0.02112]
[1763339807473,0.0165161,95119.0,95060.0,0.51913907]
[1763339807682,0.01999999,95160.0,95064.0,2.0]
[1763339807876,0.01651719,95105.0,95067.0,0.15471874]
[1763339808110,0.01651719,95105.0,95071.0,0.15471874]
[1763339808290,0.5,95110.0,95073.0,0.1113]
[1763339808495,0.323,95124.0,95076.0,0.04341874]
[1763339808496,0.0165178,95097.0,95076.0,0.04341874]
[1763339808717,0.0165178,95097.0,95081.0,0.1113]
[1763339809089,0.0165178,95097.0,95087.0,0.1113]
[1763339809307,0.0165178,95097.0,95087.0,0.61053377]
[1763339809698,0.0165178,95097.0,95088.0,0.15471874]
[1763339809901,0.01999999,95170.0,95088.0,0.15471874]
[1763339810143,0.03524732,95170.0,95101.0,0.15471874]
[1763339810346,0.05215712,95176.0,95101.0,0.15471874]
[1763339810347,0.01651676,95150.0,95101.0,0.15471874]
[1763339810544,0.51651676,95150.0,95111.0,0.04341874]
[1763339810850,0.51651676,95150.0,95111.0,0.15471874]
[1763339811025,0.323,95149.0,95111.0,0.15471874]
[1763339811225,0.51651676,95150.0,95121.0,0.04341874]
[1763339811471,0.51651676,95150.0,95130.0,0.49923377]
[1763339811795,0.51651676,95150.0,95130.0,0.49967878]
[1763339811933,0.51651676,95150.0,95130.0,0.00044501]
[1763339813773,0.51651676,95150.0,95132.0,0.04341874]
[1763339814287,0.51651676,95150.0,95133.0,0.1491]
[1763339814728,0.51651676,95150.0,95130.0,0.00344501]
[1763339814729,0.323,95149.0,95130.0,0.00344501]
[1763339814928,0.323,95149.0,95132.0,0.003]
[1763339815532,0.08432,95133.0,95132.0,0.003]
[1763339816505,0.08432,95133.0,95108.0,0.04341874]
[1763339816705,0.08432,95148.0,95111.0,0.1113]
[1763339816905,0.08432,95112.0,95111.0,0.1113]
[1763339817105,0.08432,95112.0,95111.0,0.2604]
[1763339817730,0.323,95147.0,95111.0,0.2604]
[1763339817925,0.01651676,95150.0,95112.0,0.1113]
[1763339818265,0.04341874,95189.0,95112.0,0.1113]
[1763339818464,0.01999999,95190.0,95120.0,0.49923377]
[1763339818680,0.01999999,95190.0,95122.0,0.04341874]
[1763339818817,0.323,95189.0,95126.0,0.15471874]
[1763339819841,0.323,95189.0,95128.0,0.1113]
[1763339820770,0.323,95189.0,95120.0,0.49923377]
[1763339820972,0.323,95189.0,95125.0,0.04341874]
[1763339821322,0.5,95190.0,95160.0,0.49923377]
[1763339821323,0.01651065,95172.0,95160.0,0.49923377]
[1763339821499,0.01651065,95172.0,95163.0,0.1113]
[1763339821745,0.01651065,95172.0,95116.0,0.5]
[1763339821916,0.01651065,95172.0,95134.0,0.04341874]
[1763339822135,0.01651065,95172.0,95144.0,0.04341874]
[1763339822269,0.01651065,95172.0,95130.0,0.49923377]
[1763339822270,0.01651065,95172.0,95145.0,0.1113]
[1763339822476,0.01695599,95172.0,95145.0,0.1113]
[1763339822676,0.01695599,95172.0,95147.0,0.1113]
[1763339822880,0.01695599,95172.0,95123.0,0.09338946]
[1763339823086,0.01695599,95172.0,95120.0,0.50023377]
[1763339823087,0.01695599,95172.0,95135.0,0.04341874]
[1763339823307,0.01695599,95172.0,95137.0,0.04341874]
[1763339823513,0.01695599,95172.0,95141.0,0.04341874]
[1763339823708,0.01695599,95172.0,95147.0,0.002]
[1763339823952,0.00044534,95172.0,95147.0,0.002]
[1763339824151,0.323,95169.0,95145.0,0.002]
[1763339824448,0.323,95169.0,95130.0,0.49923377]
[1763339824643,0.323,95169.0,95124.0,0.09338946]
[1763339824848,0.323,95169.0,95051.0,0.24239443]
[1763339824849,0.323,95169.0,95141.0,0.002]
[1763339825516,0.08432,95142.0,95141.0,0.002]
[1763339825738,0.323,95169.0,95141.0,0.002]
[1763339826446,0.323,95169.0,95130.0,0.002]
[1763339826568,0.00044534,95169.0,95130.0,0.002]
[1763339826768,0.00044534,95169.0,95141.0,0.002]
[1763339826969,0.03651642,95160.0,95102.0,0.1113]
[1763339827192,0.03651642,95160.0,95141.0,0.001]
[1763339827838,0.323,95149.0,95102.0,0.1113]
[1763339828358,0.323,95149.0,95105.0,0.04341874]
[1763339828561,0.5,95150.0,95123.0,0.04341874]
[1763339828716,0.5,95150.0,95124.0,0.1113]
[1763339828916,0.5,95150.0,95141.0,0.001]
[1763339829099,0.5,95150.0,95118.0,0.09338946]
[1763339829310,0.5,95150.0,95120.0,0.09338946]
[1763339829650,0.5,95150.0,95114.0,0.04341874]
[1763339829651,0.5,95150.0,95119.0,0.09338946]
[1763339829854,0.323,95149.0,95120.0,0.09338946]
[1763339830051,0.323,95149.0,95124.0,0.002]
[1763339830413,0.323,95149.0,95114.0,0.15471874]
[1763339830414,0.323,95149.0,95122.0,0.09338946]
[1763339830639,0.323,95149.0,95141.0,0.002]
[1763339831283,0.5,95150.0,95141.0,0.002]
[1763339831856,0.5,95150.0,95128.0,0.09338946]
[1763339832114,0.5,95150.0,95142.0,0.1491]
[1763339832670,0.323,95149.0,95146.0,0.07504685]
[1763339832867,0.323,95149.0,95144.0,0.07504685]
[1763339833080,0.323,95149.0,95138.0,0.07504685]
[1763339833261,0.323,95149.0,95142.0,0.002]
[1763339833781,0.323,95149.0,95135.0,0.07504685]
[1763339833981,0.323,95149.0,95144.0,0.002]
[1763339834883,0.323,95149.0,95144.0,0.004]
[1763339835382,0.08432,95148.0,95132.0,0.07504685]
[1763339835583,0.323,95149.0,95144.0,0.002]
[1763339836703,0.323,95149.0,95144.0,0.003]
[1763339836952,0.323,95149.0,95144.0,0.001]
[1763339837153,0.01651657,95148.0,95144.0,0.002]
[1763339837510,0.323,95149.0,95144.0,0.002]
[1763339838022,0.323,95149.0,95144.0,0.001]
[1763339838214,0.323,95149.0,95144.0,0.002]
[1763339838471,0.323,95149.0,95101.0,0.1113]
[1763339838639,0.323,95149.0,95100.0,0.49923377]
[1763339838640,0.323,95149.0,95144.0,0.001]
[1763339838840,0.323,95149.0,95144.0,0.002]
[1763339839221,0.323,95149.0,95144.0,0.001]
[1763339839425,0.323,95149.0,95144.0,0.002]
[1763339839642,0.323,95149.0,95144.0,0.001]
[1763339840340,0.323,95149.0,95144.0,0.003]
[1763339840542,0.01651515,95148.0,95144.0,0.003]
[1763339841364,0.01651515,95148.0,95144.0,0.002]
[1763339842236,0.01651515,95148.0,95144.0,0.001]
[1763339842436,0.02999998,95140.0,95091.0,0.09395296]
[1763339842639,0.01999999,95140.0,95083.0,0.09395296]
[1763339842838,0.02999998,95140.0,95081.0,0.09395296]
[1763339843086,0.01999999,95140.0,95081.0,0.09395296]
[1763339843292,0.01999999,95140.0,95071.0,0.1113]
[1763339843293,0.01999999,95140.0,95080.0,0.09395296]
[1763339843468,0.35299998,95140.0,95080.0,0.09395296]
[1763339843669,0.34344506,95140.0,95080.0,0.59318673]
[1763339843872,0.34344506,95140.0,95082.0,0.20525296]
[1763339844074,0.34344506,95140.0,95083.0,0.09395296]
[1763339844310,0.34344506,95140.0,95081.0,0.04341874]
[1763339844311,0.37778957,95140.0,95081.0,0.04341874]
[1763339844472,0.06478956,95140.0,95079.0,0.09395296]
[1763339844805,0.03044505,95140.0,95079.0,0.09395296]
[1763339845008,0.03044505,95140.0,95081.0,0.001]
[1763339845009,0.323,95139.0,95081.0,0.001]
[1763339845537,0.08436,95082.0,95079.0,0.09395296]
[1763339845746,0.323,95137.0,95079.0,0.001]
[1763339846149,0.323,95137.0,95081.0,0.09395296]
[1763339846288,0.323,95137.0,95079.0,0.09395296]
[1763339846494,0.0323,95136.0,95081.0,0.001]
[1763339846714,0.00044507,95136.0,95083.0,0.1113]
[1763339846915,0.00044507,95136.0,95081.0,0.09495296]
[1763339847116,0.00044507,95136.0,95081.0,0.001]
[1763339847726,0.00044507,95136.0,95075.0,0.09395296]
[1763339847928,0.02999998,95130.0,95072.0,0.09395296]
[1763339848135,0.02999998,95130.0,95079.0,0.001]
[1763339848352,0.01,95120.0,95079.0,0.001]
[1763339848553,0.01999999,95120.0,95062.0,0.09395296]
[1763339848930,0.01999999,95120.0,95075.0,0.001]
[1763339849432,0.01999999,95120.0,95079.0,0.001]
[1763339849634,0.00044507,95136.0,95079.0,0.001]
[1763339850335,0.323,95119.0,95079.0,0.001]
[1763339850799,0.323,95119.0,95066.0,0.04341874]
[1763339850933,0.0165217,95110.0,95075.0,0.001]
[1763339851134,0.323,95119.0,95079.0,0.001]
[1763339851537,0.323,95119.0,95079.0,0.002]
[1763339851776,0.01999999,95110.0,95053.0,0.09395296]
[1763339852120,0.01999999,95110.0,95030.0,0.49963377]
[1763339852121,0.01999999,95110.0,95066.0,0.001]
[1763339852304,0.01999999,95100.0,95075.0,0.001]
[1763339852455,0.01999999,95100.0,95041.0,0.09395296]
[1763339852654,0.01999999,95100.0,95030.0,0.0004]
[1763339852655,0.02999998,95100.0,95040.0,0.09395296]
[1763339852884,0.02999998,95100.0,95079.0,0.001]
[1763339853220,0.0437569,95100.0,95079.0,0.001]
[1763339853577,0.0437569,95100.0,95079.0,0.00113359]
[1763339853774,0.0437569,95100.0,95079.0,0.00213359]
[1763339854000,0.03375691,95100.0,95079.0,0.00113359]
[1763339854178,0.01652675,95095.0,95079.0,0.00013359]
[1763339855351,0.01652675,95095.0,95079.0,0.00113359]
[1763339855525,0.08436,95080.0,95079.0,0.00113359]
[1763339855827,0.08436,95080.0,95079.0,0.00013359]
[1763339856040,0.08436,95080.0,95079.0,0.00113359]
[1763339856397,0.323,95093.0,95079.0,0.00113359]
[1763339856599,0.0844,95080.0,95079.0,0.00113359]
[1763339857026,0.323,95093.0,95079.0,0.00113359]
[1763339857184,0.323,95093.0,95079.0,0.00013359]
[1763339857586,0.01652675,95095.0,95079.0,0.00313359]
[1763339857873,0.823,95080.0,95079.0,0.00213359]
[1763339858002,0.5,95080.0,95079.0,0.14923359]
[1763339858201,0.5,95080.0,95079.0,0.00013359]
[1763339858430,0.5,95080.0,95079.0,0.04455233]
[1763339858807,0.5,95080.0,95079.0,0.04355233]
[1763339859206,0.5,95080.0,95079.0,0.04655233]
[1763339859440,0.5,95080.0,95079.0,0.00313359]
[1763339859639,0.5,95080.0,95079.0,0.15785233]
[1763339860244,0.48285316,95080.0,95079.0,0.15785233]
[1763339860633,0.49999916,95080.0,95079.0,0.15885233]
[1763339860828,0.49999916,95080.0,95079.0,0.16185233]
[1763339861068,0.49999916,95080.0,95079.0,0.15785233]
[1763339861433,0.49999916,95080.0,95079.0,0.16085233]
[1763339861942,0.51652131,95080.0,95079.0,0.11743359]
[1763339863608,0.51652131,95080.0,95079.0,0.00613359]
[1763339864405,0.51652131,95080.0,95079.0,0.00313359]
[1763339865114,0.51652131,95080.0,95079.0,0.00513359]
[1763339865342,0.51652131,95080.0,95079.0,0.00013359]
[1763339865572,1.00832131,95080.0,95079.0,0.00013359]
[1763339866470,0.92392131,95080.0,95079.0,0.00013359]
[1763339866767,0.92392131,95080.0,95079.0,0.00213359]
[1763339867822,0.92392131,95080.0,95079.0,0.00413359]
[1763339868462,0.51652131,95080.0,95079.0,0.00413359]
[1763339868680,0.51652131,95080.0,95079.0,0.15323359]
[1763339868883,0.51652131,95080.0,95079.0,0.26453359]
[1763339869314,0.51652131,95080.0,95079.0,0.15323359]
[1763339869768,0.51652131,95080.0,95079.0,0.15123359]
[1763339870001,0.51652131,95080.0,95079.0,0.15223359]
[1763339870415,0.51652131,95080.0,95079.0,0.15523359]
[1763339870629,0.51652131,95080.0,95079.0,0.00613359]
[1763339871487,0.51652131,95080.0,95079.0,0.00313359]
[1763339871696,0.51652131,95080.0,95079.0,0.00013359]
[1763339871840,0.51652131,95080.0,95079.0,0.00213359]
[1763339872726,0.49999916,95080.0,95079.0,0.00413359]
[1763339872932,0.49999916,95080.0,95079.0,0.00213359]
[1763339873333,0.49999916,95080.0,95079.0,0.00413359]
[1763339873571,0.49999916,95080.0,95079.0,0.15685233]
[1763339873981,0.34038099,95080.0,95079.0,0.15885233]
[1763339874211,0.48284999,95080.0,95079.0,0.15685233]
[1763339874503,0.48284999,95080.0,95079.0,0.15485233]
[1763339874706,0.48284999,95080.0,95079.0,0.15985233]
[1763339875525,0.66879999,95080.0,95079.0,0.15985233]
[1763339875725,0.68532197,95080.0,95079.0,0.15685233]
[1763339876046,0.60092197,95080.0,95079.0,0.30595233]
[1763339876224,0.60092197,95080.0,95079.0,0.30895233]
[1763339876424,0.60092197,95080.0,95079.0,0.30695233]
[1763339876585,0.60092197,95080.0,95079.0,0.30895233]
[1763339877526,0.60092197,95080.0,95079.0,0.30395233]
[1763339877690,0.60092197,95080.0,95079.0,0.30695233]
[1763339877887,0.60092197,95080.0,95079.0,0.30895233]
[1763339878117,0.51652197,95080.0,95079.0,0.15223359]
[1763339878895,0.51652197,95080.0,95079.0,0.14923359]
[1763339879290,0.51652197,95080.0,95079.0,0.15223359]
[1763339879492,0.51652197,95080.0,95079.0,0.26553359]
[1763339880317,0.51652197,95080.0,95079.0,0.15423359]
[1763339881188,0.36742197,95080.0,95079.0,0.40555233]
[1763339881359,0.51652197,95080.0,95079.0,2.15985233]
[1763339881561,0.51652197,95080.0,95079.0,2.29051737]
[1763339881975,0.51652197,95080.0,95079.0,2.15685233]
[1763339881976,0.19065698,95080.0,95079.0,2.15685233]
[1763339882214,0.01652198,95080.0,95079.0,2.17797233]
[1763339882440,0.01652198,95080.0,95079.0,2.17897233]
[1763339882648,0.01999999,95150.0,95080.0,0.04341874]
[1763339882892,0.01999999,95150.0,95115.0,0.04341874]
[1763339883086,0.01999999,95150.0,95129.0,0.07514098]
[1763339883524,0.00999999,95170.0,95129.0,0.07514098]
[1763339883748,0.01999999,95150.0,95129.0,0.07514098]
[1763339883949,0.01999999,95150.0,95130.0,0.07514098]
[1763339884105,0.01999999,95150.0,95117.0,0.1113]
[1763339884106,0.02044533,95150.0,95129.0,0.07514098]
[1763339884306,0.00044534,95150.0,95130.0,0.07514098]
[1763339884511,0.02044533,95150.0,95130.0,0.07514098]
[1763339884719,0.00044534,95150.0,95130.0,0.07514098]
[1763339885117,0.00044534,95150.0,95141.0,0.07514098]
[1763339885323,0.00044534,95150.0,95143.0,0.07514098]
[1763339885587,0.00044534,95150.0,95103.0,0.04341874]
[1763339885588,0.08436,95144.0,95141.0,0.07514098]
[1763339885869,0.08436,95144.0,95138.0,0.07514098]
[1763339886037,0.08436,95144.0,95136.0,0.07514098]
[1763339886217,0.08436,95144.0,95134.0,0.07514098]
[1763339886760,0.01651675,95149.0,95141.0,0.003]
[1763339886982,0.33951675,95149.0,95141.0,0.002]
[1763339887322,0.33951675,95149.0,95136.0,0.001]
[1763339887864,0.13041495,95148.0,95136.0,0.001]
[1763339888072,0.13041495,95148.0,95113.0,0.06162032]
[1763339888073,0.01999999,95130.0,95113.0,0.06162032]
[1763339888306,0.01999999,95120.0,95092.0,0.09392806]
[1763339888452,0.01999999,95120.0,95081.0,0.09392806]
[1763339888775,0.02999998,95120.0,95078.0,0.09392806]
[1763339889133,0.01652227,95110.0,95078.0,0.09392806]
[1763339889539,0.01652227,95110.0,95078.0,0.00013359]
[1763339890120,0.323,95109.0,95078.0,0.09406165]
[1763339890339,0.323,95109.0,95078.0,0.09506165]
[1763339890557,0.323,95109.0,95080.0,0.09392806]
[1763339890779,0.323,95109.0,95081.0,0.04341874]
[1763339890985,0.323,95109.0,95083.0,0.09392806]
[1763339891185,0.323,95109.0,95085.0,0.09392806]
[1763339891440,0.323,95109.0,95088.0,0.09392806]
[1763339891768,0.323,95109.0,95092.0,0.09392806]
[1763339891968,0.323,95109.0,95103.0,0.09392806]
[1763339892197,0.323,95109.0,95104.0,0.09392806]
[1763339892605,0.37406699,95110.0,95106.0,0.09392806]
[1763339892809,0.37406699,95110.0,95081.0,0.04341874]
[1763339892810,0.49999999,95110.0,95103.0,0.09392806]
[1763339893010,0.49999999,95110.0,95105.0,0.09392806]
[1763339893260,0.323,95109.0,95104.0,0.09392806]
[1763339893454,0.0165195,95109.0,95105.0,0.09392806]
[1763339893645,0.49999995,95110.0,95107.0,0.09392806]
[1763339893850,0.01651801,95109.0,95105.0,0.04341874]
[1763339894230,0.01651801,95109.0,95105.0,0.04541874]
[1763339894442,0.01651801,95109.0,95105.0,0.17691803]
[1763339894853,0.01651801,95109.0,95107.0,0.04341874]
[1763339895170,0.49999995,95110.0,95105.0,0.17705162]
[1763339895171,0.49999901,95110.0,95109.0,0.04341874]
[1763339895373,0.49999901,95110.0,95106.0,2.04341874]
[1763339895573,0.58435901,95110.0,95109.0,2.04341874]
[1763339895734,0.58435901,95110.0,95109.0,0.04341874]
[1763339896190,0.49999901,95110.0,95109.0,0.04341874]
[1763339896758,0.49999901,95110.0,95109.0,2.04341874]
[1763339896962,0.49999901,95110.0,95109.0,2.04641874]
[1763339897364,0.49999901,95110.0,95109.0,2.15771874]
[1763339897769,0.49999901,95110.0,95109.0,2.18634617]
[1763339898014,0.49999901,95110.0,95109.0,2.18834617]
[1763339898192,0.49999901,95110.0,95109.0,2.18634617]
[1763339898576,0.49999901,95110.0,95109.0,2.18934617]
[1763339898774,0.49999901,95110.0,95109.0,2.18634617]
[1763339898977,0.51651377,95110.0,95109.0,2.07504617]
[1763339899174,0.51651377,95110.0,95109.0,2.07904617]
[1763339899497,0.51651377,95110.0,95109.0,2.07804617]
[1763339899738,0.51651377,95110.0,95109.0,2.05041874]
[1763339899927,0.51651377,95110.0,95109.0,2.04741874]
[1763339900126,0.51651377,95110.0,95109.0,2.008]
[1763339900308,0.51651377,95110.0,95109.0,2.05141874]
[1763339900654,0.51651377,95110.0,95109.0,2.008]
[1763339900995,0.51651377,95110.0,95109.0,2.04741874]
[1763339901195,0.51651377,95110.0,95109.0,0.05041874]
[1763339901534,0.51651377,95110.0,95109.0,0.04741874]
[1763339901900,0.51651377,95110.0,95109.0,0.05041874]
[1763339902186,0.51651377,95110.0,95109.0,0.004]
[1763339902354,0.51651377,95110.0,95109.0,0.13120152]
[1763339902569,0.51651377,95110.0,95109.0,0.13420152]
[1763339902782,0.51651377,95110.0,95109.0,0.006]
[1763339903123,0.51651377,95110.0,95109.0,0.003]
[1763339903320,0.49251493,95110.0,95109.0,2.04941874]
[1763339903759,0.49251526,95110.0,95109.0,2.04941874]
[1763339903968,0.49251526,95110.0,95109.0,2.04641874]
[1763339904106,0.49251526,95110.0,95109.0,2.04341874]
[1763339904308,0.49251526,95110.0,95109.0,2.04641874]
[1763339904530,0.49251526,95110.0,95109.0,2.04341874]
[1763339904971,0.49251526,95110.0,95109.0,2.04641874]
[1763339905426,0.57687526,95110.0,95109.0,2.04941874]
[1763339905618,0.66123526,95110.0,95109.0,2.04941874]